bitfinex/quotes_BTCUSD_20241010
["timestamp","ask_amount","ask_price","bid_price","bid_amount"]
[1728580309580,0.332476,60155.0,60042.0,0.8]
[1728580309581,0.166278,60140.0,60139.0,0.1805]
[1728580310016,0.332534,60145.0,60139.0,0.1805]
[1728580310171,0.166275,60142.0,60139.0,0.1805]
[1728580310974,0.00742614,60148.0,60139.0,0.1805]
[1728580311179,0.166278,60140.0,60139.0,0.1805]
[1728580311447,0.332551,60142.0,60139.0,0.1805]
[1728580311650,0.001,60140.0,60139.0,0.358597]
[1728580311815,0.332519,60147.0,60139.0,0.181316]
[1728580311983,0.166269,60144.0,60139.0,0.182316]
[1728580312194,0.332519,60147.0,60139.0,0.18664128]
[1728580312394,0.166268,60144.0,60139.0,0.18564128]
[1728580312592,0.16627,60143.0,60139.0,0.18464128]
[1728580312794,0.16627,60143.0,60139.0,0.183316]
[1728580313435,0.166268,60144.0,60139.0,0.183316]
[1728580313731,0.332528,60146.0,60139.0,0.183316]
[1728580314103,0.166271,60143.0,60139.0,0.183316]
[1728580314230,0.166268,60144.0,60139.0,0.183316]
[1728580314844,0.166268,60144.0,60139.0,0.347596]
[1728580315212,0.001,60143.0,60139.0,0.34016986]
[1728580315883,0.168268,60144.0,60139.0,0.34016986]
[1728580316094,0.170268,60144.0,60139.0,0.34016986]
[1728580316367,0.170268,60144.0,60139.0,0.17388986]
[1728580316603,0.166271,60143.0,60139.0,0.17388986]
[1728580316829,0.166275,60142.0,60139.0,0.17388986]
[1728580317289,0.166274,60142.0,60139.0,0.17388986]
[1728580317518,0.166278,60140.0,60139.0,0.17388986]
[1728580317718,0.332548,60142.0,60139.0,0.17388986]
[1728580317989,0.166278,60140.0,60139.0,0.17388986]
[1728580319336,0.166278,60140.0,60139.0,0.17588986]
[1728580319743,0.332538,60144.0,60139.0,0.17788986]
[1728580319956,0.498814,60143.0,60139.0,0.17788986]
[1728580320164,0.332538,60144.0,60139.0,0.29788986]
[1728580320380,0.166274,60142.0,60139.0,0.29788986]
[1728580320592,0.166276,60141.0,60139.0,0.29788986]
[1728580320998,0.166275,60142.0,60139.0,0.29788986]
[1728580321198,0.166276,60141.0,60139.0,0.29788986]
[1728580321874,0.166278,60140.0,60139.0,0.122816]
[1728580322237,0.166278,60140.0,60139.0,0.120816]
[1728580322670,0.32711564,60140.0,60139.0,0.120816]
[1728580322915,0.32711564,60140.0,60139.0,0.121816]
[1728580323471,0.32811564,60140.0,60139.0,0.120816]
[1728580324796,0.001,60140.0,60139.0,0.120816]
[1728580325007,0.001,60140.0,60139.0,0.287097]
[1728580325242,0.005,60140.0,60139.0,0.57182993]
[1728580325462,0.005,60140.0,60139.0,0.73478582]
[1728580325668,0.012,60140.0,60139.0,0.73578582]
[1728580326089,0.012,60140.0,60139.0,0.89659243]
[1728580326531,0.166244,60153.0,60147.0,0.166257]
[1728580326739,0.332474,60155.0,60146.0,0.332524]
[1728580326946,0.332484,60154.0,60147.0,0.00255111]
[1728580327148,0.332484,60154.0,60143.0,0.33254]
[1728580327355,0.334139,60149.0,60142.0,0.005]
[1728580327568,0.167887,60149.0,60144.0,0.166267]
[1728580327796,0.001632,60149.0,60147.0,0.58146519]
[1728580328020,0.001632,60149.0,60148.0,0.16903683]
[1728580328633,0.001632,60149.0,60146.0,0.005]
[1728580328811,0.001632,60149.0,60148.0,0.166256]
[1728580329394,0.001632,60149.0,60148.0,0.167256]
[1728580329618,0.001632,60149.0,60148.0,0.66417246]
[1728580329843,0.001632,60149.0,60148.0,0.74217246]
[1728580330385,0.001632,60149.0,60148.0,0.74717246]
[1728580330593,0.001632,60149.0,60148.0,0.89230091]
[1728580331001,0.001632,60149.0,60148.0,0.89030091]
[1728580331252,0.002632,60149.0,60148.0,0.89930091]
[1728580331428,0.003632,60149.0,60148.0,0.90930091]
[1728580334989,0.02,60160.0,60159.0,0.166226]
[1728580335191,0.02,60160.0,60159.0,0.57029507]
[1728580335573,0.02,60160.0,60159.0,0.75569507]
[1728580335775,0.02,60160.0,60159.0,1.1654809]
[1728580336014,0.02,60160.0,60159.0,1.2481809]
[1728580336236,0.001636,60170.0,60165.0,0.435409]
[1728580336463,0.001636,60170.0,60165.0,0.88325391]
[1728580336710,0.001636,60170.0,60169.0,0.435398]
[1728580336915,0.001636,60170.0,60169.0,0.88324291]
[1728580337121,0.001636,60170.0,60169.0,1.04404952]
[1728580337329,0.001634,60200.0,60183.0,0.352959]
[1728580337551,0.001634,60200.0,60183.0,0.87850391]
[1728580338464,0.001634,60200.0,60199.0,0.71762227]
[1728580338688,0.001634,60200.0,60199.0,0.87845991]
[1728580338918,0.001634,60200.0,60199.0,1.0327547]
[1728580340270,0.001634,60200.0,60199.0,1.0467547]
[1728580340766,0.001634,60200.0,60199.0,1.04163678]
[1728580341016,0.001634,60200.0,60199.0,1.05563678]
[1728580341485,0.001634,60200.0,60199.0,1.02763678]
[1728580341722,0.001634,60207.0,60200.0,0.171112]
[1728580341947,0.001634,60207.0,60200.0,0.84170444]
[1728580342160,0.001634,60207.0,60202.0,0.271107]
[1728580342382,0.001634,60207.0,60202.0,0.43194464]
[1728580342803,0.001634,60207.0,60206.0,0.55810327]
[1728580343027,0.001634,60213.0,60212.0,0.166079]
[1728580343248,0.001634,60213.0,60212.0,0.87444448]
[1728580343460,0.001634,60213.0,60212.0,1.15822608]
[1728580343883,0.001634,60213.0,60212.0,0.97121881]
[1728580344319,0.001634,60213.0,60212.0,0.92782391]
[1728580344541,0.001634,60213.0,60212.0,0.65298627]
[1728580345167,0.001634,60213.0,60212.0,0.65498627]
[1728580345624,0.001634,60213.0,60203.0,0.28700727]
[1728580345836,0.166088,60209.0,60208.0,0.24894819]
[1728580346265,0.333788,60213.0,60200.0,0.352512]
[1728580346266,0.166099,60205.0,60200.0,0.352512]
[1728580346477,0.001634,60213.0,60202.0,0.28700727]
[1728580346680,0.001634,60213.0,60212.0,0.014]
[1728580347316,0.333762,60218.0,60212.0,0.014]
[1728580347517,0.001634,60218.0,60212.0,0.014]
[1728580347725,0.166074,60215.0,60212.0,0.014]
[1728580348139,0.166074,60215.0,60212.0,0.002]
[1728580348413,0.166077,60213.0,60212.0,0.002]
[1728580348616,0.33190113,60213.0,60212.0,0.002]
[1728580349329,0.332167,60211.0,60206.0,0.24894819]
[1728580349536,0.166093,60208.0,60206.0,0.24894819]
[1728580349734,0.166092,60208.0,60206.0,0.24894819]
[1728580349959,0.166093,60207.0,60206.0,0.24894819]
[1728580350206,0.166093,60207.0,60202.0,0.166107]
[1728580350457,0.00498649,60213.0,60200.0,0.14564153]
[1728580350668,0.00498649,60213.0,60199.0,0.24894819]
[1728580350817,0.166093,60207.0,60206.0,0.007]
[1728580351032,0.166093,60207.0,60199.0,0.24894819]
[1728580351033,0.166102,60204.0,60199.0,0.24894819]
[1728580351261,0.166112,60200.0,60199.0,0.24894819]
[1728580351466,0.28700727,60215.0,60191.0,0.438736]
[1728580351467,0.00498649,60204.0,60191.0,0.1898]
[1728580351667,0.00498649,60193.0,60185.0,0.24894819]
[1728580351871,0.166151,60186.0,60185.0,0.24894819]
[1728580352425,0.166172,60179.0,60177.0,0.24894819]
[1728580352636,0.166172,60179.0,60164.0,0.01961092]
[1728580352637,0.332373,60174.0,60163.0,0.0767]
[1728580352840,0.16619,60172.0,60166.0,0.166206]
[1728580353042,0.166193,60171.0,60168.0,0.002]
[1728580353233,0.1662,60169.0,60166.0,0.002]
[1728580353395,0.166205,60167.0,60166.0,0.24894819]
[1728580353601,0.29199376,60175.0,60160.0,0.00332392]
[1728580353816,0.332386,60171.0,60164.0,0.24894819]
[1728580353983,0.00498649,60173.0,60164.0,0.24894819]
[1728580354184,0.0038194,60172.0,60164.0,0.24894819]
[1728580354432,0.16621,60165.0,60159.0,0.166224]
[1728580354649,0.16621,60165.0,60164.0,0.24894819]
[1728580354849,0.16622,60162.0,60157.0,0.44384819]
[1728580355069,0.332428,60164.0,60157.0,0.44384819]
[1728580355267,0.166222,60161.0,60157.0,0.44384819]
[1728580355473,0.166219,60162.0,60157.0,0.44384819]
[1728580355673,0.332431,60163.0,60157.0,0.44384819]
[1728580355915,0.166217,60162.0,60157.0,0.1949]
[1728580356108,0.166217,60162.0,60157.0,0.2009]
[1728580356302,0.332431,60163.0,60157.0,0.005]
[1728580356523,0.166226,60159.0,60157.0,0.005]
[1728580356766,0.00498649,60168.0,60157.0,0.005]
[1728580356767,0.00498649,60168.0,60157.0,0.009]
[1728580357002,0.332404,60168.0,60158.0,0.24894819]
[1728580357202,0.166207,60166.0,60161.0,0.166219]
[1728580357442,0.00498649,60172.0,60161.0,0.332441]
[1728580357663,0.166201,60169.0,60163.0,0.166214]
[1728580357867,0.00498649,60172.0,60159.0,0.33445]
[1728580358076,0.00498649,60176.0,60160.0,0.06387216]
[1728580358302,0.166197,60170.0,60165.0,0.41515719]
[1728580358507,0.332377,60173.0,60162.0,0.332435]
[1728580358726,0.166196,60170.0,60165.0,0.166208]
[1728580359467,0.168196,60170.0,60165.0,0.166208]
[1728580359891,0.002,60170.0,60165.0,0.332418]
[1728580360129,0.002,60170.0,60165.0,0.0706846]
[1728580360363,0.168196,60170.0,60165.0,0.2368926]
[1728580360597,0.166198,60169.0,60165.0,0.004]
[1728580360811,0.166206,60166.0,60165.0,0.004]
[1728580361019,0.166206,60166.0,60165.0,0.007]
[1728580361502,0.332397,60169.0,60165.0,0.004]
[1728580361503,0.166202,60168.0,60165.0,0.004]
[1728580361711,0.332375,60173.0,60165.0,0.004]
[1728580361924,0.332375,60173.0,60165.0,0.170208]
[1728580362143,0.166198,60169.0,60165.0,0.004]
[1728580362363,0.166198,60169.0,60165.0,0.24894819]
[1728580362601,0.332339,60180.0,60168.0,0.002]
[1728580362808,0.332323,60183.0,60174.0,0.166183]
[1728580363006,0.332317,60184.0,60176.0,0.002]
[1728580363221,0.166166,60181.0,60175.0,0.16618]
[1728580363467,0.166165,60182.0,60177.0,0.166175]
[1728580363644,0.16616,60183.0,60177.0,0.002]
[1728580363856,0.332303,60186.0,60178.0,0.00332312]
[1728580364149,0.166162,60182.0,60178.0,0.00332312]
[1728580364406,0.166158,60184.0,60178.0,0.16949512]
[1728580364627,0.332283,60190.0,60178.0,0.16949512]
[1728580364628,0.332288,60189.0,60180.0,0.332335]
[1728580364845,0.332281,60190.0,60182.0,0.332324]
[1728580365062,0.001,60186.0,60183.0,0.57504289]
[1728580365280,0.001,60186.0,60185.0,0.168154]
[1728580365527,0.001,60186.0,60185.0,0.32899164]
[1728580365772,0.00498649,60204.0,60189.0,0.002]
[1728580366024,0.166114,60200.0,60195.0,0.166125]
[1728580366257,0.16611,60201.0,60196.0,0.166123]
[1728580366501,0.16611,60201.0,60194.0,0.332257]
[1728580366502,0.332202,60205.0,60194.0,0.334257]
[1728580366732,0.00498649,60207.0,60197.0,0.58118919]
[1728580366973,0.166107,60203.0,60198.0,0.16943988]
[1728580367203,0.166107,60203.0,60193.0,0.002]
[1728580367204,0.166122,60197.0,60193.0,0.24894819]
[1728580367420,0.166121,60197.0,60193.0,0.24894819]
[1728580367871,0.166116,60199.0,60194.0,0.166129]
[1728580368084,0.332222,60201.0,60193.0,0.24894819]
[1728580368267,0.166114,60200.0,60195.0,0.166126]
[1728580368536,0.00498649,60206.0,60195.0,0.002]
[1728580368718,0.166107,60203.0,60195.0,0.002]
[1728580368925,0.166108,60202.0,60197.0,0.166119]
[1728580369504,0.166101,60204.0,60199.0,0.166114]
[1728580369705,0.16611,60201.0,60196.0,0.166123]
[1728580369869,0.003,60206.0,60193.0,0.82198722]
[1728580369870,0.166118,60198.0,60193.0,0.82198722]
[1728580370066,0.00498649,60196.0,60183.0,0.03376469]
[1728580370309,0.00498649,60196.0,60184.0,0.24894819]
[1728580370310,0.16615,60187.0,60184.0,0.24894819]
[1728580370517,0.332294,60188.0,60184.0,0.24894819]
[1728580370693,0.166152,60186.0,60184.0,0.24894819]
[1728580371105,0.332292,60188.0,60184.0,0.24894819]
[1728580371350,0.166151,60187.0,60184.0,0.24894819]
[1728580371550,0.332283,60190.0,60184.0,0.24894819]
[1728580371750,0.332294,60188.0,60184.0,0.24894819]
[1728580371978,0.166143,60189.0,60183.0,0.16895235]
[1728580372215,0.166147,60188.0,60184.0,0.174156]
[1728580372436,0.166147,60188.0,60184.0,0.182156]
[1728580372637,0.498426,60190.0,60184.0,0.008]
[1728580372841,0.16613,60194.0,60189.0,0.16614]
[1728580373089,0.166127,60195.0,60190.0,0.20853239]
[1728580373290,0.332244,60197.0,60191.0,0.166137]
[1728580373489,0.00498649,60200.0,60191.0,0.16702155]
[1728580373720,0.166119,60198.0,60194.0,0.166128]
[1728580373864,0.332229,60200.0,60193.0,0.00088447]
[1728580374063,0.166119,60198.0,60194.0,0.27254939]
[1728580374493,0.166117,60199.0,60195.0,0.16700944]
[1728580374701,0.00498649,60205.0,60196.0,0.166123]
[1728580374906,0.03265828,60218.0,60195.0,0.002]
[1728580374907,0.005,60200.0,60195.0,0.002]
[1728580375180,0.005,60200.0,60199.0,0.166115]
[1728580375497,0.166106,60203.0,60199.0,0.166115]
[1728580375905,0.332188,60207.0,60200.0,0.24894819]
[1728580376112,0.332188,60207.0,60201.0,0.00199349]
[1728580376340,0.166099,60205.0,60201.0,0.16810149]
[1728580376545,0.166097,60206.0,60202.0,0.166107]
[1728580376766,0.33714649,60212.0,60203.0,0.00199342]
[1728580376983,0.00580149,60214.0,60207.0,0.002]
[1728580377195,0.332964,60214.0,60208.0,0.00235505]
[1728580377404,0.166078,60213.0,60209.0,0.00332138]
[1728580377613,0.332964,60214.0,60209.0,0.00332138]
[1728580377614,0.166889,60214.0,60210.0,0.166084]
[1728580377815,0.000815,60214.0,60210.0,0.09634239]
[1728580378239,0.166077,60213.0,60210.0,0.09634239]
[1728580378441,0.166077,60213.0,60210.0,0.00332131]
[1728580378675,0.005815,60214.0,60210.0,0.00332131]
[1728580378881,0.166077,60213.0,60210.0,0.00332131]
[1728580379089,0.005815,60214.0,60208.0,0.24894819]
[1728580379295,0.005815,60214.0,60205.0,0.183]
[1728580379296,0.00498649,60213.0,60205.0,0.183]
[1728580379507,0.166088,60209.0,60206.0,0.24894819]
[1728580379720,0.00598649,60213.0,60206.0,0.24894819]
[1728580379970,0.166091,60208.0,60206.0,0.24894819]
[1728580380181,0.166086,60210.0,60206.0,0.24894819]
[1728580380461,0.00498649,60213.0,60206.0,0.24894819]
[1728580380933,0.332166,60211.0,60206.0,0.24894819]
[1728580381495,0.166086,60210.0,60206.0,0.24894819]
[1728580381706,0.166088,60209.0,60206.0,0.24894819]
[1728580381916,0.166085,60210.0,60206.0,0.24894819]
[1728580382320,0.166082,60211.0,60206.0,0.41504319]
[1728580382555,0.166082,60211.0,60207.0,0.00096595]
[1728580382771,0.166082,60211.0,60207.0,0.16705895]
[1728580382991,0.166082,60211.0,60207.0,0.00096595]
[1728580383207,0.166132,60193.0,60192.0,0.1834]
[1728580383424,0.00498649,60200.0,60187.0,0.083]
[1728580383425,0.166135,60192.0,60190.0,0.24894819]
[1728580383637,0.166137,60191.0,60190.0,0.24894819]
[1728580384070,0.166146,60189.0,60187.0,0.083]
[1728580384272,0.166141,60190.0,60187.0,0.083]
[1728580384489,0.332303,60186.0,60183.0,0.1834]
[1728580384713,0.00498649,60191.0,60184.0,0.24894819]
[1728580384947,0.166157,60184.0,60183.0,0.1834]
[1728580385405,0.166162,60182.0,60181.0,0.00163]
[1728580385899,0.00498649,60189.0,60181.0,0.00163]
[1728580385900,0.16614,60190.0,60186.0,0.166148]
[1728580386168,0.16614,60191.0,60187.0,0.16947027]
[1728580386723,0.00498649,60203.0,60191.0,0.19345721]
[1728580386979,0.4726,60207.0,60193.0,0.16613]
[1728580386980,0.332223,60201.0,60193.0,0.16613]
[1728580387237,0.166119,60198.0,60194.0,0.166129]
[1728580387525,0.166115,60199.0,60192.0,0.078]
[1728580387744,0.33722149,60199.0,60192.0,0.078]
[1728580388001,0.166127,60195.0,60192.0,0.078]
[1728580388700,0.166116,60199.0,60194.0,0.172129]
[1728580388944,0.166119,60198.0,60192.0,0.248134]
[1728580389189,0.166131,60194.0,60192.0,0.013]
[1728580389441,0.33721149,60201.0,60192.0,0.25794819]
[1728580389675,0.166121,60197.0,60193.0,0.166131]
[1728580389930,0.00498649,60201.0,60192.0,0.26594819]
[1728580390178,0.166125,60196.0,60192.0,0.43208119]
[1728580390421,0.166121,60197.0,60192.0,0.43208119]
[1728580390677,0.332226,60200.0,60192.0,0.43208219]
[1728580390948,0.00498649,60203.0,60197.0,0.16612]
[1728580391169,0.166113,60200.0,60196.0,0.166122]
[1728580391639,0.166113,60200.0,60193.0,0.24894819]
[1728580391640,0.00498649,60201.0,60193.0,0.24894819]
[1728580391852,0.00498649,60201.0,60194.0,0.081]
[1728580392065,0.166115,60199.0,60194.0,0.247128]
[1728580392279,0.166115,60199.0,60197.0,0.001]
[1728580392280,0.166118,60198.0,60197.0,0.001]
[1728580392496,0.166128,60195.0,60191.0,0.1934]
[1728580392742,0.166128,60195.0,60192.0,0.24894819]
[1728580392996,0.166125,60196.0,60193.0,0.003]
[1728580393243,0.166126,60195.0,60193.0,0.003]
[1728580393484,0.332226,60200.0,60193.0,0.003]
[1728580393723,0.00498649,60201.0,60194.0,0.332257]
[1728580393724,0.332221,60201.0,60194.0,0.332257]
[1728580393944,0.166116,60199.0,60194.0,0.166128]
[1728580394382,0.000817,60202.0,60195.0,0.00332215]
[1728580394616,0.000817,60202.0,60198.0,0.166117]
[1728580394819,0.000817,60202.0,60195.0,0.332251]
[1728580394820,0.166926,60202.0,60199.0,0.00130307]
[1728580395075,0.000817,60202.0,60198.0,0.00130306]
[1728580395310,0.000817,60202.0,60201.0,0.16611]
[1728580395527,0.000817,60202.0,60201.0,0.24871385]
[1728580396399,0.000817,60202.0,60201.0,0.59105149]
[1728580396631,0.000817,60202.0,60201.0,0.58974764]
[1728580396876,0.000817,60202.0,60201.0,0.75055425]
[1728580397623,0.000817,60202.0,60201.0,0.75755425]
[1728580397860,0.000817,60202.0,60201.0,0.2738]
[1728580398096,0.000817,60202.0,60201.0,0.43991]
[1728580398366,0.000817,60202.0,60201.0,0.58974764]
[1728580398612,0.000817,60202.0,60201.0,0.60074764]
[1728580398872,0.000817,60202.0,60201.0,0.61274764]
[1728580399134,0.000817,60202.0,60201.0,0.7406692]
[1728580399881,0.000817,60202.0,60201.0,0.7426692]
[1728580401678,0.000817,60202.0,60201.0,0.53344764]
[1728580403161,0.000817,60202.0,60201.0,0.53544764]
[1728580404299,0.000817,60202.0,60201.0,0.78439583]
[1728580404546,0.000817,60202.0,60201.0,0.95969583]
[1728580404778,0.000815,60214.0,60213.0,0.45508427]
[1728580405007,0.000815,60214.0,60213.0,0.88972191]
[1728580407750,0.000815,60214.0,60213.0,0.91772191]
[1728580408928,0.000815,60214.0,60213.0,1.01772191]
[1728580410196,0.000815,60214.0,60213.0,1.32772918]
[1728580410449,0.000815,60214.0,60213.0,1.20152852]
[1728580410683,0.0002,60219.0,60217.0,0.002]
[1728580410920,0.0002,60219.0,60217.0,1.00941091]
[1728580411635,0.001632,60222.0,60217.0,1.00941091]
[1728580411636,0.001632,60222.0,60221.0,0.433155]
[1728580411862,0.001634,60225.0,60224.0,0.76015327]
[1728580412117,0.001634,60225.0,60224.0,1.14255735]
[1728580412355,0.0002,60239.0,60238.0,0.72011527]
[1728580412583,0.0002,60239.0,60238.0,0.98095291]
[1728580412811,0.0002,60239.0,60238.0,1.26796018]
[1728580413035,0.0002,60239.0,60238.0,1.00395291]
[1728580413267,0.0002,60239.0,60238.0,1.14175952]
[1728580413995,0.0002,60239.0,60238.0,1.15075952]
[1728580414469,0.0002,60239.0,60238.0,1.14175952]
[1728580414677,0.0002,60239.0,60238.0,1.15175952]
[1728580415090,0.0002,60239.0,60238.0,1.05175952]
[1728580415331,0.0002,60239.0,60238.0,1.06575952]
[1728580415556,0.0002,60239.0,60238.0,1.05175952]
[1728580415805,0.0002,60239.0,60238.0,1.05375952]
[1728580416239,0.0002,60239.0,60238.0,1.15375952]
[1728580416457,0.0002,60239.0,60238.0,1.15575952]
[1728580416917,0.001016,60239.0,60238.0,1.45676679]
[1728580417355,0.001016,60239.0,60238.0,1.44276679]
[1728580417572,0.001016,60239.0,60238.0,1.46576679]
[1728580417787,0.001016,60239.0,60238.0,1.15575952]
[1728580418477,0.001016,60239.0,60238.0,0.52194564]
[1728580418688,0.001016,60239.0,60238.0,0.53494564]
[1728580419120,0.001016,60239.0,60238.0,0.52194564]
[1728580419352,0.001016,60239.0,60238.0,0.52394564]
[1728580419567,0.001016,60239.0,60238.0,0.53594564]
[1728580419783,0.001016,60239.0,60238.0,0.69675225]
[1728580419999,0.001016,60239.0,60238.0,0.52094564]
[1728580420189,0.001016,60239.0,60238.0,0.53194564]
[1728580420657,0.001016,60239.0,60238.0,0.52094564]
[1728580420875,0.001016,60239.0,60238.0,0.51094564]
[1728580421102,0.001016,60239.0,60238.0,0.52394564]
[1728580421323,0.001016,60239.0,60238.0,0.94770044]
[1728580421555,0.001016,60239.0,60238.0,0.67175225]
[1728580421788,0.001632,60245.0,60244.0,0.45499827]
[1728580422025,0.001632,60245.0,60244.0,0.61583591]
[1728580422275,0.001632,60245.0,60244.0,0.77664252]
[1728580422493,0.001632,60245.0,60244.0,0.87664252]
[1728580422951,0.001632,60245.0,60244.0,1.12559071]
[1728580423202,0.000817,60249.0,60248.0,0.73818727]
[1728580423452,0.000817,60249.0,60248.0,1.05983152]
[1728580424133,0.000817,60249.0,60248.0,1.13613152]
[1728580424362,0.000817,60249.0,60248.0,1.17313152]
[1728580424613,0.000817,60249.0,60248.0,1.15013152]
[1728580424829,0.000817,60249.0,60248.0,1.13613152]
[1728580425046,0.000817,60249.0,60248.0,1.15013152]
[1728580425719,0.000817,60249.0,60248.0,1.16413152]
[1728580425945,0.000817,60249.0,60248.0,1.16957085]
[1728580426377,0.000817,60249.0,60248.0,1.15557085]
[1728580426813,0.000817,60249.0,60248.0,1.16357085]
[1728580427310,0.000817,60249.0,60248.0,1.16457085]
[1728580427538,0.000817,60249.0,60248.0,1.16957085]
[1728580427996,0.000817,60249.0,60248.0,1.18357085]
[1728580430794,0.000817,60249.0,60248.0,1.08357085]
[1728580431037,0.000817,60249.0,60248.0,0.028]
[1728580431287,0.000817,60249.0,60248.0,0.19598]
[1728580431775,0.000817,60249.0,60248.0,0.43181764]
[1728580432012,0.000817,60249.0,60248.0,0.41781764]
[1728580432249,0.000817,60249.0,60248.0,0.530994]
[1728580432486,0.000817,60249.0,60248.0,0.525994]
[1728580432734,0.000817,60249.0,60248.0,0.511994]
[1728580432971,0.000817,60249.0,60248.0,0.80300127]
[1728580433191,0.000817,60249.0,60248.0,0.90300127]
[1728580433456,0.000817,60249.0,60248.0,0.89900127]
[1728580433715,0.000817,60249.0,60248.0,0.90700127]
[1728580434195,0.000817,60249.0,60248.0,0.91600127]
[1728580434439,0.000817,60249.0,60248.0,0.90700127]
[1728580434907,0.000817,60249.0,60248.0,0.91600127]
[1728580436829,0.000817,60249.0,60248.0,0.93560242]
[1728580437623,0.000817,60249.0,60248.0,0.91600127]
[1728580437876,0.000817,60249.0,60248.0,0.84100127]
[1728580438361,0.000817,60249.0,60248.0,0.18498]
[1728580439260,0.000817,60249.0,60248.0,0.16798]
[1728580439509,0.000817,60249.0,60248.0,0.16898]
[1728580439761,0.000817,60249.0,60248.0,0.45929252]
[1728580440019,0.000817,60249.0,60248.0,0.45498727]
[1728580440214,0.000817,60249.0,60248.0,0.59177542]
[1728580440436,0.000817,60249.0,60248.0,0.59877542]
[1728580440655,0.000817,60249.0,60248.0,0.31276815]
[1728580441104,0.000817,60249.0,60248.0,0.17498]
[1728580441321,0.000817,60249.0,60248.0,0.18098]
[1728580441552,0.000817,60249.0,60248.0,0.015]
[1728580441768,0.00580349,60249.0,60248.0,0.015]
[1728580442229,0.17178049,60249.0,60248.0,0.015]
[1728580442447,0.00580349,60249.0,60248.0,0.015]
[1728580442693,0.00580349,60249.0,60248.0,0.18098]
[1728580442908,0.00580349,60249.0,60248.0,0.015]
[1728580443822,0.17162873,60249.0,60248.0,0.015]
[1728580444810,0.00565173,60249.0,60248.0,0.015]
[1728580445499,0.00565173,60249.0,60248.0,0.18098]
[1728580445712,0.00565173,60249.0,60248.0,0.015]
[1728580447327,0.00565173,60249.0,60248.0,0.18298]
[1728580447551,0.00066524,60249.0,60248.0,0.18629917]
[1728580447782,0.00066524,60249.0,60248.0,0.50462425]
[1728580448002,0.00066524,60249.0,60248.0,0.18298]
[1728580449368,0.00066524,60249.0,60248.0,0.18098]
[1728580449603,0.17162873,60249.0,60248.0,0.015]
[1728580450544,0.17162873,60249.0,60248.0,0.007]
[1728580451523,0.00565173,60249.0,60248.0,0.002]
[1728580451774,0.00565173,60249.0,60248.0,0.003]
[1728580452006,0.00066524,60249.0,60248.0,0.17229926]
[1728580452234,0.00066524,60249.0,60248.0,0.17429926]
[1728580452904,0.00066524,60249.0,60248.0,0.2068659]
[1728580453570,0.00066524,60249.0,60248.0,0.2058659]
[1728580453826,0.00066524,60249.0,60248.0,0.20154664]
[1728580454539,0.00066524,60249.0,60248.0,0.17098]
[1728580457297,0.00066524,60249.0,60248.0,0.16898]
[1728580458293,0.00066524,60249.0,60248.0,0.17098]
[1728580461343,0.00066524,60249.0,60248.0,0.33181764]
[1728580462540,0.00066524,60249.0,60248.0,0.33081764]
[1728580462780,0.000817,60252.0,60251.0,0.458726]
[1728580463016,0.000817,60252.0,60251.0,1.15102983]
[1728580463248,0.000817,60252.0,60251.0,1.17586605]
[1728580463697,0.000817,60252.0,60251.0,1.07652115]
[1728580463940,0.000817,60252.0,60251.0,1.17586605]
[1728580464163,0.000816,60262.0,60258.0,0.267953]
[1728580464382,0.000816,60262.0,60258.0,0.85996111]
[1728580464614,0.000816,60262.0,60258.0,1.15979235]
[1728580464840,0.000816,60262.0,60258.0,1.34306837]
[1728580465085,0.000816,60262.0,60258.0,1.36789961]
[1728580465313,0.000816,60262.0,60258.0,1.42938127]
[1728580465570,0.000816,60262.0,60261.0,0.267944]
[1728580465791,0.000816,60262.0,60261.0,0.47841536]
[1728580466010,0.000816,60262.0,60261.0,0.42878164]
[1728580466253,0.000817,60263.0,60262.0,0.102]
[1728580466522,0.000817,60263.0,60262.0,1.23030483]
[1728580466753,0.000817,60265.0,60262.0,1.23030483]
[1728580466754,0.000817,60265.0,60264.0,0.002]
[1728580467001,0.000816,60275.0,60271.0,0.82400025]
[1728580467239,0.000816,60275.0,60271.0,1.03444727]
[1728580467527,0.000816,60275.0,60274.0,0.267909]
[1728580467771,0.000816,60275.0,60274.0,0.58955325]
[1728580468067,0.000816,60275.0,60274.0,0.32874664]
[1728580468294,0.000816,60275.0,60273.0,0.331822]
[1728580468295,0.165909,60274.0,60273.0,0.002]
[1728580468544,0.000816,60275.0,60273.0,0.002]
[1728580468545,0.166722,60275.0,60273.0,0.002]
[1728580468794,0.165911,60273.0,60271.0,0.014]
[1728580469031,0.00498649,60274.0,60271.0,0.41486219]
[1728580469264,0.00498649,60274.0,60272.0,0.04168622]
[1728580469504,0.17089549,60274.0,60271.0,0.167914]
[1728580469738,0.00498649,60274.0,60270.0,0.333837]
[1728580469976,0.00498649,60274.0,60272.0,0.167913]
[1728580470431,0.00498649,60274.0,60273.0,0.007]
[1728580470881,0.000816,60275.0,60274.0,0.165909]
[1728580471104,0.000816,60275.0,60274.0,0.167909]
[1728580471792,0.000816,60275.0,60274.0,0.20323682]
[1728580472218,0.000816,60275.0,60274.0,0.20523682]
[1728580472439,0.000816,60275.0,60274.0,0.169909]
[1728580472657,0.000816,60275.0,60274.0,0.17322672]
[1728580472875,0.000816,60275.0,60274.0,0.169909]
[1728580473319,0.000816,60275.0,60274.0,0.33074664]
[1728580473763,0.000816,60275.0,60274.0,0.33174664]
[1728580473987,0.000816,60275.0,60274.0,0.49255325]
[1728580474212,0.000816,60275.0,60274.0,0.170909]
[1728580474440,0.000816,60275.0,60274.0,0.003]
[1728580474876,0.00580249,60275.0,60274.0,0.003]
[1728580475067,0.00580249,60275.0,60274.0,0.170909]
[1728580475333,0.00580249,60275.0,60274.0,0.005]
[1728580475621,0.17170849,60275.0,60274.0,0.003]
[1728580476125,0.17170849,60275.0,60274.0,0.001]
[1728580476359,0.17170849,60275.0,60273.0,0.16]